fUSD/lending_fUSD_20251017
["ID","MTS","AMOUNT","RATE_DAILY","PERIOD"]
[391598516,1760687443620,-819.47335246,0.00015,2]
[391598517,1760687443632,-1219.04752451,0.00015,2]
[391598518,1760687443642,-9374.0710216,0.00015,2]
[391598519,1760687443652,-1002.17895338,0.00015,2]
[391598527,1760687446429,-127.12631632,0.00015,2]
[391598528,1760687446440,-3469.5234472,0.00015,2]
[391598529,1760687446642,-341.63991054,0.00015,2]
[391598530,1760687446660,-500.07852729,0.00015,2]
[391598532,1760687446833,-1252.36147321,0.00015,2]
[391598567,1760687891991,-150.0,0.00014355,2]
[391598568,1760687892020,-355.13477853,0.00014383,2]
[391598569,1760687892048,-1500.0,0.00014411,2]
[391598570,1760687892079,-2975.55,0.00014833,2]
[391598571,1760687892107,-1159.94436252,0.0001485,2]
[391598572,1760687892136,-1200.0,0.00014858,2]
[391598573,1760687892163,-300.0,0.00014858,2]
[391598574,1760687892191,-1200.0,0.00014858,2]
[391598575,1760687892217,-1159.37085895,0.00014859,2]
[391598576,1760687893103,-5457.27054105,0.00014859,2]
[391598577,1760687893132,-233.4332,0.00014859,2]
[391598578,1760687893159,-874.4847,0.0001488,2]
[391598579,1760687893185,-150.0,0.00014899,2]
[391598580,1760687893213,-278.6726,0.000149,2]
[391598581,1760687893238,-3006.13895895,0.000149,2]
[391598582,1760687895386,-1048.62894105,0.000149,2]
[391598583,1760687895410,-2133.9083,0.000149,2]
[391598584,1760687895436,-6817.46275895,0.00014985,2]
[391598585,1760687905684,-2628.8801,0.000149,2]
[391598586,1760687905709,-2133.2085,0.000149,2]
[391598587,1760687905739,-5237.9114,0.00014985,2]
[391598593,1760687956263,3286.2894,0.000149,2]
[391598596,1760687968471,-9791.94709326,0.00014985,2]
[391598597,1760687968498,-200.0,0.00014991,2]
[391598598,1760687968525,-8.05290674,0.00014991,2]
[391598599,1760687968578,233.4332,0.000149,2]
[391598600,1760687973891,-142.94709326,0.00014991,2]
[391598601,1760687973918,-163.85502309,0.00014991,2]
[391598602,1760687973956,-151.0,0.00014991,2]
[391598603,1760687973982,-151.0,0.00014991,2]
[391598604,1760687974009,-151.0,0.00014991,2]
[391598605,1760687974035,-200.0,0.00014991,2]
[391598606,1760687974414,-200.0,0.00014991,2]
[391598607,1760687974441,-151.0,0.00014991,2]
[391598608,1760687974471,-151.0,0.00014991,2]
[391598609,1760687974497,-151.0,0.00014991,2]
[391598610,1760687974524,-151.0,0.00014991,2]
[391598611,1760687974549,-151.0,0.00014991,2]
[391598612,1760687974574,-151.0,0.00014991,2]
[391598613,1760687974599,-151.0,0.00014991,2]
[391598614,1760687974623,-151.0,0.00014991,2]
[391598615,1760687974650,-151.0,0.00014991,2]
[391598616,1760687974676,-151.0,0.00014991,2]
[391598617,1760687974703,-151.0,0.00014991,2]
[391598618,1760687974728,-151.0,0.00014991,2]
[391598619,1760687974753,-1000.0,0.00014999,2]
[391598620,1760687974782,-354.31144024,0.00014999,5]
[391598621,1760687974808,-1000.0,0.00014999,2]
[391598622,1760687974834,-250.0,0.00015,2]
[391598623,1760687974860,-250.0,0.00015,2]
[391598624,1760687974885,-250.0,0.00015,2]
[391598625,1760687974912,-250.0,0.00015,2]
[391598626,1760687974939,-3673.88644341,0.00015,2]
[391598627,1760687992744,-886.36701609,0.00015,2]
[391598628,1760687992766,-2261.0921835,0.00015,2]
[391598629,1760687992789,-1680.01124,0.00015,2]
[391598630,1760687992811,-2584.6011167,0.00015,2]
[391598631,1760687998836,278.6726,0.000149,2]
[391598632,1760688023073,1273.66,0.00026189,120]
[391598633,1760688030406,2309.25584371,0.00014952,2]
[391598634,1760688030431,6480.2774,0.00014952,2]
[391598638,1760688086143,-300.0,0.00017269,30]
[391598682,1760688300832,-233.4332,0.000149,2]
[391598683,1760688300860,-278.6726,0.000149,2]
[391598684,1760688300887,-1004.0,0.00014951,2]
[391598685,1760688300915,-8483.8942,0.00014952,2]
[391598686,1760688301827,-300.0,0.00014951,2]
[391598687,1760688301853,-1200.0,0.00014951,2]
[391598688,1760688301878,-8500.0,0.00014952,2]
[391598689,1760688303081,-10000.0,0.00014952,2]
[391598690,1760688310652,-10000.0,0.00014952,2]
[391598693,1760688338640,-1223.05386609,0.00014952,2]
[391598694,1760688338667,-353.3124988,0.00014965,2]
[391598695,1760688338698,-4423.63363511,0.00014965,2]
[391598696,1760688346326,-4000.0,0.00014965,2]
[391598738,1760688631747,-259.56933376,0.00014965,2]
[391598739,1760688631760,-183.74725643,0.00014965,2]
[391598740,1760688631770,-377.9715341,0.00014975,2]
[391598741,1760688631785,-151.0,0.00015,2]
[391598742,1760688631796,-526.2499116,0.00015,2]
[391598743,1760688631806,-300.0,0.00015103,2]
[391598744,1760688631816,-168.40314051,0.00015103,2]
[391598745,1760688631829,-302.0,0.00015103,2]
[391598746,1760688631842,-729.59685949,0.00015103,2]
[391598747,1760688631852,-74.07314051,0.00015103,2]
[391598748,1760688631864,-225.92685949,0.00015103,2]
[391598749,1760688631875,-302.28914051,0.00015104,2]
[391598750,1760688631888,-197.71085949,0.00015104,2]
[391598751,1760688631898,-181.78914051,0.00015104,2]
[391598752,1760688631922,-318.21085949,0.00015104,2]
[391598753,1760688631935,-500.0,0.00015104,2]
[391598754,1760688631944,-240.38914051,0.00015104,2]
[391598755,1760688631957,-259.61085949,0.00015104,2]
[391598756,1760688631967,-300.81591404,0.00015104,2]
[391598757,1760688631977,-151.0,0.00015167,2]
[391598758,1760688631987,-151.0,0.00015169,2]
[391598759,1760688631997,-151.0,0.00015169,2]
[391598760,1760688632007,-151.0,0.0001517,2]
[391598761,1760688632017,-151.0,0.0001517,2]
[391598762,1760688632027,-562.07402648,0.0001527,2]
[391598763,1760688632043,-613.94190947,0.0001527,2]
[391598764,1760688632057,-503.99531405,0.0001527,2]
[391598765,1760688632071,-149.44549548,0.00015359,2]
[391598766,1760688632084,-17.21450452,0.00015359,2]
[391598767,1760688632093,-200.0,0.00015391,2]
[391598768,1760688632103,-151.0,0.00015391,2]
[391598770,1760688632113,-151.0,0.00015391,2]
[391598772,1760688632122,-151.0,0.00015391,2]
[391598774,1760688632132,-151.0,0.00015391,2]
[391598775,1760688632142,-200.0,0.00015391,2]
[391598776,1760688632153,-151.0,0.00015391,2]
[391598777,1760688632163,-169.12693625,0.00015391,2]
[391598778,1760688632174,-200.0,0.00015391,2]
[391598779,1760688632184,-85.31861899,0.000154,2]
[391598782,1760688632223,-5190.99730547,0.000154,2]
[391598784,1760688632232,-211.88,0.00015431,2]
[391598786,1760688632244,-300.0,0.00015645,2]
[391598788,1760688632254,-267.28698562,0.00015749,2]
[391598791,1760688632265,-1680.01125,0.0001578,2]
[391598793,1760688632274,-2210.39852061,0.00015807,2]
[391598795,1760688632287,-266.77478385,0.00015939,2]
[391598797,1760688632297,-200.42,0.00015967,2]
[391598799,1760688632307,-267.49337341,0.00016,2]
[391598800,1760688632317,-176.25,0.00016004,2]
[391598801,1760688632327,-1000.0,0.00016016,2]
[391598802,1760688632337,-3821.37,0.00016083,2]
[391598804,1760688632347,-150.0,0.00016115,2]
[391598805,1760688632357,-1193.59431297,0.00016117,2]
[391598807,1760688632367,-211.88,0.00016133,2]
[391598808,1760688632382,-550.0,0.00016133,2]
[391598809,1760688632392,-166.66,0.0001616,2]
[391598811,1760688632403,-1346.49329756,0.000162,2]
[391598813,1760688632413,-1300.91481299,0.00016263,2]
[391598815,1760688632426,-1300.91481299,0.00016263,2]
[391598817,1760688632436,-1680.01125,0.0001627,2]
[391598819,1760688632446,-301.33,0.0001628,2]
[391598821,1760688632462,-2538.03111803,0.00016447,2]
[391598823,1760688632472,-250.0,0.00016462,2]
[391598825,1760688632483,-195.0,0.00016462,2]
[391598827,1760688632493,-420.0,0.00016528,2]
[391598829,1760688632503,-420.0,0.00016528,2]
[391598831,1760688632513,-1680.0,0.00016612,2]
[391598833,1760688632523,-190.63,0.00016712,2]
[391598836,1760688632537,-2584.6011167,0.00016761,2]
[391598838,1760688632547,-1680.01125,0.0001677,2]
[391598840,1760688632557,-4560.2534595,0.00016802,2]
[391598842,1760688632567,-2261.0921835,0.0001683,2]
[391598844,1760688632578,-211.88,0.00016834,2]
[391598846,1760688632588,-200.42,0.00016854,2]
[391598848,1760688632598,-8866.9502253,0.00016899,2]
[391598850,1760688632608,-353.3124988,0.00016904,2]
[391598852,1760688632618,-3868.15,0.00016943,2]
[391598854,1760688632629,-500.0,0.00016953,2]
[391598856,1760688632639,-500.0,0.00016953,2]
[391598858,1760688632649,-413.40424031,0.00016953,2]
[391598860,1760688632658,-46996.4813098,0.00016954,2]
[391598862,1760688632669,-166.66,0.00016961,2]
[391598864,1760688632678,-500.0,0.00016973,2]
[391598866,1760688632689,-500.34312885,0.00016973,2]
[391598868,1760688632699,-377.9715341,0.00016982,2]
[391598870,1760688632709,-207.36682235,0.00017,2]
[391598872,1760688632719,-1581.18957825,0.00017,2]
[391598874,1760688632730,-300.0,0.00017015,2]
[391598877,1760688632741,-26.71,0.00017269,30]
[391598879,1760688632755,-1680.01125,0.0001727,2]
[391598881,1760688632767,-1273.66,0.00017459,2]
[391598883,1760688632777,-501.72165447,0.00017521,2]
[391598885,1760688632791,-211.88,0.00017535,2]
[391598887,1760688632802,-250.0,0.00017614,2]
[391598889,1760688632812,-200.42,0.00017741,2]
[391598891,1760688632823,-162.0,0.00018,2]
[391598893,1760688632833,-1000.0,0.00018018,2]
[391598895,1760688632843,-587.0,0.00018087,2]
[391598896,1760688632854,-587.0,0.00018087,2]
[391598897,1760688632865,-200.0,0.0001813,2]
[391598898,1760688632875,-211.88,0.00018237,2]
[391598899,1760688632886,-2351.0,0.00018271,2]
[391598900,1760688632897,-2584.6011167,0.00018523,2]
[391598901,1760688632909,-4560.2534595,0.00018605,2]
[391598902,1760688632919,-200.42,0.00018628,2]
[391598903,1760688632930,-1000.0,0.00018658,2]
[391598904,1760688632941,-2261.0921835,0.00018659,2]
[391598905,1760688632951,-5072.42597366,0.00018833,2]
[391598906,1760688632966,-3794.52425164,0.00018833,2]
[391598907,1760688632976,-353.3124988,0.00018843,2]
[391598909,1760688632987,-2836.80237266,0.00018873,2]
[391598911,1760688632998,-807.08910481,0.00018898,2]
[391598913,1760688633008,-211.88,0.00018938,2]
[391598914,1760688633018,-8450.56037172,0.00018955,2]
[391598915,1760688633031,-400.5122685,0.00018955,2]
[391598916,1760688633049,-634.02339,0.00018955,2]
[391598921,1760688637703,-263.1249558,0.00017,2]
[391598922,1760688637713,-266.08810913,0.00018955,2]
[391598923,1760688637724,-13764.52295443,0.00018955,2]
[391598924,1760688637795,-470.96836491,0.00018955,2]
[391598925,1760688637809,-500.70845754,0.00018955,2]
[391598926,1760688637821,-13818.07829481,0.00018955,2]
[391598927,1760688637833,-7051.85689114,0.00018955,2]
[391598928,1760688637846,-1650.04234109,0.00018955,2]
[391598929,1760688637859,-255.20797566,0.00018955,2]
[391598930,1760688637869,-500.67886966,0.00018973,2]
[391598931,1760688637880,-500.0,0.00018973,2]
[391598932,1760688637890,-165.66061742,0.00018973,2]
[391598933,1760688637901,-500.0,0.00018973,2]
[391598934,1760688637911,-500.0,0.00018973,2]
[391598935,1760688637921,-66.09681942,0.00018973,2]
[391598936,1760688637933,-434.12469374,0.00018973,2]
[391598937,1760688637943,-415.87530626,0.00018988,2]
[391598939,1760688638066,-11325.19469374,0.00018988,2]
[391598940,1760688638077,-377.9715341,0.00018989,2]
[391598942,1760688638087,-1000.0,0.00018997,2]
[391598944,1760688638097,-322.6107,0.00018998,2]
[391598946,1760688638108,-500.0,0.00018998,2]
[391598948,1760688638118,-151.0,0.00018998,2]
[391598950,1760688638128,-268.08190151,0.00018998,2]
[391598952,1760688638138,-250.0,0.00018998,2]
[391598954,1760688638148,-8405.14122186,0.00018998,2]
[391599124,1760688639828,-1056.45,0.00018998,2]
[391599126,1760688639841,-90.57664361,0.00018998,2]
[391599128,1760688639851,-500.0,0.00018998,2]
[391599130,1760688639862,-250.0,0.00018998,2]
[391599132,1760688639872,-500.0,0.00018998,2]
[391599134,1760688639882,-250.0,0.00018998,2]
[391599135,1760688639893,-500.0,0.00018998,2]
[391599136,1760688639903,-250.0,0.00018998,2]
[391599137,1760688639914,-500.0,0.00018998,2]
[391599138,1760688639924,-250.0,0.00018998,2]
[391599139,1760688639935,-500.0,0.00018998,2]
[391599140,1760688639947,-250.0,0.00018998,2]
[391599141,1760688639958,-500.0,0.00018998,2]
[391599142,1760688639968,-250.0,0.00018998,2]
[391599143,1760688639978,-500.0,0.00018998,2]
[391599144,1760688639991,-250.0,0.00018998,2]
[391599145,1760688640001,-500.0,0.00018998,2]
[391599146,1760688640011,-250.0,0.00018998,2]
[391599147,1760688640021,-500.0,0.00018998,2]
[391599148,1760688640031,-250.0,0.00018998,2]
[391599149,1760688640047,-421.81655959,0.00018998,2]
[391599150,1760688640059,-78.18344041,0.00018998,2]
[391599151,1760688640069,-250.0,0.00018998,2]
[391599152,1760688640079,-220.0,0.00018998,2]
[391599153,1760688640089,-151.0,0.00018998,2]
[391599154,1760688640099,-220.0,0.00018998,2]
[391599156,1760688640109,-220.0,0.00018998,2]
[391599158,1760688640119,-220.0,0.00018998,2]
[391599160,1760688640129,-220.0,0.00018998,2]
[391599162,1760688640140,-220.0,0.00018998,2]
[391599164,1760688640151,-220.0,0.00018998,2]
[391599166,1760688640162,-712.08082264,0.00018998,2]
[391599167,1760688640175,-287.91917736,0.00018998,2]
[391599168,1760688640186,-220.0,0.00018998,2]
[391599169,1760688640196,-1000.0,0.00018998,2]
[391599170,1760688640206,-693.3919763,0.00018998,2]
[391599171,1760688640216,-220.0,0.00018998,2]
[391599172,1760688640226,-1000.0,0.00018998,2]
[391599173,1760688640237,-1000.0,0.00018998,2]
[391599174,1760688640247,-168.99120347,0.00018998,2]
[391599175,1760688640257,-1000.0,0.00018998,2]
[391599176,1760688640267,-31.78752895,0.00018998,2]
[391599177,1760688640279,-968.21247105,0.00018998,2]
[391599178,1760688640294,-1000.0,0.00018998,2]
[391599179,1760688640305,-1000.0,0.00018998,2]
[391599180,1760688640315,-151.0,0.00018998,2]
[391599181,1760688640329,-664.17212895,0.00018998,2]
[391599182,1760688640341,-335.82787105,0.00018998,2]
[391599183,1760688640351,-721.12765535,0.00018998,2]
[391599184,1760688640361,-250.0,0.00018998,2]
[391599185,1760688640372,-1000.0,0.00018998,2]
[391599186,1760688640382,-151.0,0.00018998,2]
[391599187,1760688640392,-1000.0,0.00018998,2]
[391599188,1760688640402,-250.0,0.00018998,2]
[391599189,1760688640412,-1000.0,0.00018998,2]
[391599190,1760688640422,-151.0,0.00018998,2]
[391599191,1760688640433,-1000.0,0.00018998,2]
[391599192,1760688640442,-1000.0,0.00018998,2]
[391599193,1760688640453,-250.0,0.00018998,2]
[391599194,1760688640465,-1000.0,0.00018998,2]
[391599195,1760688640474,-151.0,0.00018998,2]
[391599196,1760688640484,-1000.0,0.00018998,2]
[391599197,1760688640495,-1000.0,0.00018998,2]
[391599198,1760688640506,-250.0,0.00018998,2]
[391599199,1760688640515,-1000.0,0.00018998,2]
[391599200,1760688640525,-1000.0,0.00018998,2]
[391599201,1760688640539,-151.0,0.00018998,2]
[391599202,1760688640549,-1000.0,0.00018998,2]
[391599203,1760688640560,-575.47880964,0.00018998,2]
[391599204,1760688640570,-250.0,0.00018998,2]
[391599205,1760688640581,-1000.0,0.00018998,2]
[391599206,1760688640592,-1000.0,0.00018998,2]
[391599207,1760688640602,-151.0,0.00018998,2]
[391599208,1760688640613,-1000.0,0.00018998,2]
[391599209,1760688640623,-250.0,0.00018998,2]
[391599210,1760688640633,-1000.0,0.00018998,2]
[391599211,1760688640644,-151.0,0.00018998,2]
[391599212,1760688640654,-1000.0,0.00018998,2]
[391599213,1760688640664,-250.0,0.00018998,2]
[391599214,1760688640675,-1000.0,0.00018998,2]
[391599215,1760688640686,-151.0,0.00018998,2]
[391599216,1760688640696,-1000.0,0.00018998,2]
[391599217,1760688640706,-250.0,0.00018998,2]
[391599218,1760688640716,-1000.0,0.00018998,2]
[391599219,1760688640726,-151.0,0.00018998,2]
[391599220,1760688640736,-1000.0,0.00018998,2]
[391599221,1760688640746,-250.0,0.00018998,2]
[391599222,1760688640756,-1000.0,0.00018998,2]
[391599223,1760688640767,-151.0,0.00018998,2]
[391599224,1760688640777,-250.0,0.00018998,2]
[391599225,1760688640789,-1000.0,0.00018998,2]
[391599226,1760688640800,-151.0,0.00018998,2]
[391599227,1760688640810,-250.0,0.00018998,2]
[391599228,1760688640819,-1000.0,0.00018998,2]
[391599229,1760688640829,-250.0,0.00018998,2]
[391599230,1760688640839,-1000.0,0.00018998,2]
[391599231,1760688640849,-250.0,0.00018998,2]
[391599232,1760688640859,-1000.0,0.00018998,2]
[391599233,1760688640868,-250.0,0.00018998,2]
[391599234,1760688640878,-250.0,0.00018998,2]
[391599235,1760688640888,-250.0,0.00018998,2]
[391599236,1760688640899,-250.0,0.00018998,2]
[391599237,1760688640909,-1000.0,0.00018998,2]
[391599238,1760688640919,-250.0,0.00018998,2]
[391599239,1760688640929,-250.0,0.00018998,2]
[391599240,1760688640938,-250.0,0.00018998,2]
[391599241,1760688640948,-250.0,0.00018998,2]
[391599242,1760688640958,-250.0,0.00018998,2]
[391599243,1760688640968,-250.0,0.00018998,2]
[391599244,1760688640978,-250.0,0.00018998,2]
[391599245,1760688640988,-250.0,0.00018998,2]
[391599246,1760688640998,-250.0,0.00018998,2]
[391599247,1760688641008,-250.0,0.00018998,2]
[391599248,1760688641018,-282.43106553,0.00018998,2]
[391599249,1760688641028,-250.0,0.00018998,2]
[391599250,1760688641040,-250.0,0.00018998,2]
[391599251,1760688641049,-250.0,0.00018998,2]
[391599252,1760688641060,-250.0,0.00018998,2]
[391599253,1760688641070,-3000.0,0.00018998,2]
[391599254,1760688641081,-250.0,0.00018998,2]
[391599255,1760688641091,-3000.0,0.00018998,2]
[391599256,1760688641101,-250.0,0.00018998,2]
[391599257,1760688641110,-3000.0,0.00018998,2]
[391599258,1760688641121,-3000.0,0.00018998,2]
[391599259,1760688641130,-3000.0,0.00018998,2]
[391599260,1760688641140,-3000.0,0.00018998,2]
[391599261,1760688641150,-239.79609754,0.00018998,2]
[391599262,1760688641160,-3000.0,0.00018998,2]
[391599263,1760688641170,-151.0,0.00018998,2]
[391599264,1760688641181,-3000.0,0.00018998,2]
[391599265,1760688641191,-3000.0,0.00018998,2]
[391599266,1760688641202,-3000.0,0.00018998,2]
[391599267,1760688641212,-3000.0,0.00018998,2]
[391599268,1760688641223,-277.35679052,0.00018998,2]
[391599269,1760688641233,-920.22,0.00018998,2]
[391599270,1760688641244,-263.12495579,0.00018998,2]
[391599271,1760688641254,-636.90046076,0.00019,2]
[391599272,1760688641265,-17941.0,0.00019,2]
[391599273,1760688641275,-9905.5980765,0.00019053,2]
[391599274,1760688641287,-1000.0,0.00019099,2]
[391599275,1760688641299,-266.20138854,0.000191,2]
[391599276,1760688641309,-317.32764527,0.000191,2]
[391599277,1760688641319,-375.96947111,0.000191,2]
[391599278,1760688641329,-1217.86845757,0.000191,2]
[391599279,1760688641339,-1217.86845757,0.000191,2]
[391599280,1760688641349,-10272.10520533,0.00019108,2]
[391599281,1760688641359,-10652.17309792,0.00019163,2]
[391599282,1760688641369,-200.0,0.00019178,2]
[391599283,1760688641379,-11046.30350255,0.00019218,2]
[391599284,1760688641389,-920.22,0.00019272,2]
[391599285,1760688641399,-11455.01673214,0.00019273,2]
[391599286,1760688641409,-266.20138854,0.000193,2]
[391599287,1760688641420,-317.32764527,0.000193,2]
[391599288,1760688641430,-375.96947111,0.000193,2]
[391599289,1760688641439,-1217.86845757,0.000193,2]
[391599290,1760688641449,-1217.86845757,0.000193,2]
[391599291,1760688641461,-11878.85235123,0.00019328,2]
[391599292,1760688641472,-475.57272817,0.00019332,2]
[391599293,1760688641863,-12318.36988823,0.00019383,2]
[391599294,1760688641873,-167.71,0.00019401,2]
[391599295,1760688641884,-12774.14957409,0.00019438,2]
[391599296,1760688641894,-1702.78,0.00019465,2]
[391599297,1760688641904,-13246.79310833,0.00019493,2]
[391599298,1760688641913,-266.20138854,0.000195,2]
[391599299,1760688641923,-317.32764527,0.000195,2]
[391599300,1760688641933,-375.96947111,0.000195,2]
[391599301,1760688641943,-1217.86845757,0.000195,2]
[391599302,1760688641953,-1217.86845757,0.000195,2]
[391599303,1760688641963,-200.42,0.00019515,2]
[391599304,1760688641972,-501.37940019,0.00019521,2]
[391599305,1760688641982,-501.2555985,0.00019521,2]
[391599306,1760688641992,-501.26726669,0.00019521,2]
[391599307,1760688642002,-920.22,0.00019545,2]
[391599308,1760688642012,-151.0,0.00019546,2]
[391599309,1760688642022,-151.0,0.00019546,2]
[391599310,1760688642032,-151.0,0.00019546,2]
[391599311,1760688642044,-4449.4440581,0.00019548,2]
[391599312,1760688642141,-9287.48039524,0.00019548,2]
[391599313,1760688642151,-4588.61236086,0.000196,3]
[391599314,1760688642163,-923.38763914,0.000196,3]
[391599315,1760688642173,-211.88,0.0001964,2]
[391599316,1760688642183,-1273.66,0.00019642,2]
[391599317,1760688642192,-758.77236086,0.000197,2]
[391599318,1760688642205,-1223.22763914,0.000197,2]
[391599319,1760688642215,-266.20138854,0.000197,2]
[391599320,1760688642224,-317.32764527,0.000197,2]
[391599321,1760688642234,-375.96947111,0.000197,2]
[391599322,1760688642244,-1217.86845757,0.000197,2]
[391599323,1760688642253,-801.75739834,0.000197,2]
[391599324,1760688642265,-416.11105923,0.000197,2]
[391599325,1760688642275,-530.71,0.00019726,2]
[391599326,1760688642285,-400.0,0.00019726,2]
[391599327,1760688642297,-823.0,0.00019793,2]
[391599328,1760688642306,-307.15345188,0.00019819,2]
[391599329,1760688642330,-613.06654812,0.00019819,2]
[391599330,1760688642340,-1385.23255596,0.00019887,2]
[391599331,1760688642353,-436.48295078,0.00019887,2]
[391599332,1760688642365,-498.4377814,0.00019887,2]
[391599333,1760688642376,-509.66001,0.00019887,2]
[391599334,1760688642392,-2491.18670186,0.00019887,2]
[391599335,1760688642405,-266.20138854,0.000199,2]
[391599336,1760688642416,-317.32764527,0.000199,2]
[391599337,1760688642426,-375.96947111,0.000199,2]
[391599338,1760688642438,-650.69198392,0.000199,2]
[391599353,1760688643220,-323.83588203,0.000199,2]
[391599354,1760688643281,-243.34059162,0.000199,2]
[391599355,1760688643295,-1144.01207318,0.000199,2]
[391599356,1760688643764,-151.0,0.00015367,2]
[391599357,1760688643776,-73.85638439,0.000199,2]
[391599358,1760688643787,-12296.65097409,0.0001995,15]
[391599359,1760688643800,-1150.31214129,0.0002,5]
[391599360,1760688643811,-564.72471224,0.0002,14]
[391599361,1760688643822,-1000.0,0.0002002,2]
[391599362,1760688643833,-920.22,0.00020093,2]
[391599363,1760688643845,-151.0,0.00020094,2]
[391599365,1760688643857,-151.0,0.00020094,2]
[391599366,1760688643869,-151.0,0.00020094,2]
[391599367,1760688643882,-3292.0,0.00020096,2]
[391599368,1760688643893,-2836.80237261,0.00020113,2]
[391599369,1760688643903,-492.14,0.00020187,2]
[391599370,1760688643914,-4580.41789812,0.000202,5]
[391599372,1760688643931,-356.65416478,0.000202,5]
[391599373,1760688643952,-574.9279371,0.000202,5]
[391599374,1760688643962,-600.0,0.00020274,2]
[391599375,1760688643972,-2256.8993422,0.00020274,2]
[391599376,1760688644336,-9484.1706578,0.00020274,2]
[391599377,1760688644347,-2584.6011167,0.00020284,2]
[391599378,1760688644357,-211.88,0.00020341,2]
[391599379,1760688644367,-334.5472959,0.00020367,2]
[391599380,1760688644377,-287.61899177,0.00020367,2]
[391599381,1760688644387,-920.22,0.00020367,2]
[391599382,1760688644397,-200.42,0.00020402,2]
[391599383,1760688644541,-4560.2534595,0.00020407,2]
[391599384,1760688644551,-2261.0921835,0.00020489,2]
[391599385,1760688644560,-171.90414242,0.000205,2]
[391599386,1760688644569,-807.08910481,0.00020612,2]
[391599387,1760688644579,-920.22,0.00020641,2]
[391599388,1760688644588,-298.15882975,0.00020642,2]
[391599389,1760688644598,-151.0,0.00020642,2]
[391599390,1760688644608,-8866.9502253,0.00020767,2]
[391599391,1760688644618,-353.3124988,0.00020782,2]
[391599392,1760688644627,-800.0,0.00020822,2]
[391599393,1760688644638,-9598.32478538,0.000209,30]
[391599394,1760688644648,-500.0,0.00020904,2]
[391599395,1760688644658,-920.29,0.00020915,2]
[391599396,1760688644667,-46996.4813098,0.00020957,2]
[391599397,1760688644677,-500.0,0.00020973,2]
[391599398,1760688644687,-500.0,0.00020973,2]
[391599399,1760688644696,-500.0,0.00020973,2]
[391599400,1760688644707,-500.0,0.00020973,2]
[391599401,1760688644717,-500.0,0.00020973,2]
[391599402,1760688644727,-500.0,0.00020973,2]
[391599403,1760688644736,-500.0,0.00020973,2]
[391599404,1760688644750,-324.8204341,0.00020973,2]
[391599405,1760688644760,-501.84001775,0.00020973,2]
[391599406,1760688644771,-500.0,0.00020973,2]
[391599407,1760688644781,-500.0,0.00020973,2]
[391599408,1760688644792,-516.40685008,0.00020973,2]
[391599409,1760688644803,-163.58069853,0.00020973,2]
[391599410,1760688644814,-500.0,0.00020973,2]
[391599411,1760688644824,-500.0,0.00020973,2]
[391599412,1760688644834,-162.69179887,0.00020973,2]
[391599413,1760688644843,-500.0,0.00020973,2]
[391599414,1760688644854,-547.453986,0.00020973,2]
[391599415,1760688644864,-500.0,0.00020973,2]
[391599416,1760688644874,-303.07599531,0.00020973,2]
[391599417,1760688644883,-501.8511031,0.00020973,2]
[391599418,1760688644893,-369.3760145,0.00020973,2]
[391599419,1760688644903,-500.0,0.00020973,2]
[391599420,1760688644913,-500.0,0.00020973,2]
[391599421,1760688644923,-500.38319489,0.00020973,2]
[391599422,1760688644934,-340.26716106,0.00020973,2]
[391599423,1760688644944,-500.21672834,0.00020973,2]
[391599424,1760688644954,-500.83660294,0.00020973,2]